bitfinex-derivatives/quotes_ETHF0:USTF0_20250817
["timestamp","ask_amount","ask_price","bid_price","bid_amount"]
[1755421206104,1.0524,4542.2,4541.3,2.4002]
[1755421206309,0.56429656,4542.1,4541.4,0.9817]
[1755421206505,0.56429656,4542.0,4541.3,1.7871]
[1755421206715,3.2078,4542.3,4541.6,1.5948]
[1755421206917,0.56340755,4542.2,4541.8,0.6131]
[1755421207206,3.2078,4542.3,4542.0,2.4002]
[1755421207411,0.01223017,4542.4,4541.3,2.4002]
[1755421207610,0.3763,4542.1,4541.4,0.6131]
[1755421207805,1.0524,4541.9,4541.3,0.6131]
[1755421208011,3.22003017,4542.4,4541.4,0.9817]
[1755421208311,3.22003017,4542.4,4541.5,0.6131]
[1755421208312,1.9917922,4542.3,4541.5,0.6131]
[1755421208513,0.3763,4542.0,4540.9,0.9817]
[1755421208807,1.4287,4541.3,4540.3,3.8209]
[1755421209006,1.99159948,4541.2,4540.3,3.8209]
[1755421209200,1.61529948,4541.1,4540.3,4.0132]
[1755421209401,0.56289023,4541.0,4540.4,0.6131]
[1755421209601,0.56289023,4541.0,4539.7,0.8054]
[1755421209602,0.3763,4540.5,4539.7,0.8054]
[1755421209809,1.61535144,4540.4,4539.8,0.6131]
[1755421210006,1.0524,4540.4,4539.8,0.6131]
[1755421210207,1.0524,4540.4,4539.4,3.2078]
[1755421210208,1.4287,4540.2,4539.4,3.2078]
[1755421210511,3.2078,4540.5,4539.8,0.6131]
[1755421210704,3.2078,4541.1,4540.4,2.4002]
[1755421210907,0.3763,4541.8,4540.9,0.8054]
[1755421211102,0.38853017,4542.4,4540.9,4.9949]
[1755421211306,0.01223017,4542.4,4541.6,1.4185]
[1755421211502,0.01223017,4542.4,4541.7,0.6131]
[1755421211709,0.01223017,4542.4,4542.0,1.7871]
[1755421211912,0.01223017,4542.4,4541.6,0.44005]
[1755421212112,0.01223017,4542.4,4542.3,1.4185]
[1755421212711,1.44093017,4542.4,4542.3,0.6131]
[1755421212914,0.57441625,4542.4,4541.8,0.8054]
[1755421213107,0.01223017,4542.4,4541.5,1.7871]
[1755421213301,1.06463017,4542.4,4541.4,3.2078]
[1755421213506,1.06463017,4542.4,4541.5,2.4002]
[1755421213707,1.06463017,4542.4,4541.7,0.6131]
[1755421213912,0.7520727,4542.3,4541.7,0.6131]
[1755421214106,1.0524,4542.1,4541.4,3.2078]
[1755421214403,1.5306,4541.9,4540.9,0.6131]
[1755421214608,2.1806809,4541.8,4540.9,0.6131]
[1755421214810,0.7519809,4541.7,4540.9,0.6131]
[1755421215012,1.4287,4541.5,4540.3,1.5948]
[1755421215220,1.8043809,4541.4,4540.4,0.8054]
[1755421215407,0.7519809,4541.3,4540.5,0.6131]
[1755421215609,1.4287,4541.1,4540.2,0.6131]
[1755421215813,1.12835406,4541.0,4540.2,0.6131]
[1755421216113,0.3763,4541.6,4540.6,4.9949]
[1755421216418,22.4019,4542.2,4541.4,0.6131]
[1755421216419,3.2078,4542.2,4541.4,0.6131]
[1755421216620,0.75186946,4542.1,4541.4,0.6131]
[1755421216923,4.2602,4542.2,4541.1,3.2078]
[1755421216924,0.19011165,4542.0,4541.2,0.9817]
[1755421217116,1.0524,4542.2,4541.4,0.6131]
[1755421217314,0.75178783,4542.1,4541.4,0.6131]
[1755421217513,1.11178783,4542.0,4541.4,0.6131]
[1755421217820,0.01223017,4542.4,4541.5,0.6116]
[1755421217821,1.3186,4541.7,4541.5,0.6116]
[1755421218017,3.2078,4542.2,4541.6,1.3824]
[1755421218212,0.75167937,4542.1,4541.2,2.3766]
[1755421218412,0.75167937,4542.0,4541.5,0.6116]
[1755421218620,0.9586,4542.3,4541.5,0.6116]
[1755421218816,0.75150321,4542.2,4541.8,1.765]
[1755421219119,0.01223017,4542.4,4542.0,1.765]
[1755421219320,0.75137552,4542.3,4542.1,0.9942]
[1755421219616,0.01223017,4542.4,4542.3,0.6116]
[1755421219817,0.20221964,4542.4,4542.3,2.3766]
[1755421220017,0.01223017,4542.4,4542.3,2.3766]
[1755421220214,1.33083017,4542.4,4541.9,3.2078]
[1755421220521,0.36,4542.1,4542.0,0.6116]
[1755421220817,1.3186,4542.1,4542.0,0.6116]
[1755421221213,0.01223017,4542.4,4542.2,0.7708]
[1755421221515,1.33083017,4542.4,4542.3,0.6116]
[1755421221716,2.08187327,4542.4,4542.3,0.6116]
[1755421222221,1.52076258,4542.4,4542.3,0.6116]
[1755421222614,1.33083017,4542.4,4542.3,0.6116]
[1755421222814,0.01223017,4542.4,4542.3,1.3824]
[1755421223616,0.97083017,4542.4,4542.3,1.3824]
[1755421224124,1.33083017,4542.4,4542.3,0.6116]
[1755421224421,1.33083017,4542.4,4541.9,3.2078]
[1755421224614,1.3186,4542.3,4541.9,0.6116]
[1755421224819,0.01223017,4542.4,4541.4,3.2078]
[1755421225017,1.3186,4542.3,4541.6,0.7708]
[1755421225215,1.3186,4542.3,4541.7,0.6116]
[1755421225816,0.9586,4542.3,4541.8,0.9942]
[1755421226011,0.9586,4542.3,4542.0,0.9942]
[1755421226220,0.9586,4542.3,4542.2,0.6116]
[1755421226827,0.01223017,4542.4,4542.3,2.3766]
[1755421227326,1.33083017,4542.4,4542.3,0.6116]
[1755421227927,1.3186,4542.3,4541.4,3.2078]
[1755421228123,0.01223017,4542.4,4541.8,0.9942]
[1755421228322,0.00484869,4542.2,4542.1,1.765]
[1755421228527,0.00484869,4542.2,4542.1,2.3766]
[1755421229926,3.2078,4543.5,4542.7,0.7708]
[1755421230122,0.19057156,4543.4,4542.8,2.3766]
[1755421230324,0.9586,4544.1,4543.4,0.6116]
[1755421230627,0.36,4543.8,4543.3,0.7708]
[1755421230827,1.14911532,4543.7,4543.6,1.3824]
[1755421231030,1.3186,4543.5,4543.2,0.6116]
[1755421231326,1.3186,4543.3,4543.2,0.6116]
[1755421231627,0.75371633,4543.3,4543.1,3.2078]
[1755421231816,0.75371633,4543.3,4541.3,1.14823287]
[1755421231817,0.36,4543.1,4542.6,3.2078]
[1755421232127,1.4081,4542.8,4541.8,3.8194]
[1755421232326,1.11339335,4542.7,4541.8,3.8194]
[1755421232627,0.9586,4542.5,4541.8,3.8194]
[1755421232828,1.3186,4542.2,4541.8,3.8194]
[1755421233028,1.3186,4542.0,4541.8,3.8194]
[1755421233218,1.71199335,4541.9,4541.2,1.765]
[1755421233422,0.75339335,4541.8,4541.5,2.3766]
[1755421233617,0.75339335,4541.7,4541.6,2.3766]
[1755421233818,2.07388836,4541.7,4541.6,0.6116]
[1755421234625,0.36,4541.5,4540.8,3.8194]
[1755421234923,24.75611476,4541.4,4540.8,3.2078]
[1755421235125,0.75602767,4541.3,4540.9,2.3766]
[1755421235320,0.75602767,4541.2,4540.9,0.44012]
[1755421235523,0.9586,4541.9,4541.2,1.3824]
[1755421235826,0.9586,4541.7,4541.3,0.6116]
[1755421236025,1.71460048,4541.6,4541.5,0.6116]
[1755421236229,0.75600048,4541.6,4541.5,2.3766]
[1755421236429,0.19084445,4541.6,4541.5,2.3766]
[1755421236729,0.19084445,4541.6,4541.5,1.3824]
[1755421236928,0.75620039,4541.6,4541.5,2.3766]
[1755421237326,3.2973,4542.6,4541.6,1.3824]
[1755421237327,3.2078,4542.6,4541.6,1.3824]
[1755421237530,0.75609179,4542.5,4542.1,2.3766]
[1755421237822,0.56529193,4542.4,4542.1,2.3766]
[1755421238025,3.2078,4542.6,4542.0,0.44002]
[1755421238218,3.2078,4542.6,4542.3,0.9942]
[1755421238219,0.56524015,4542.5,4542.3,0.9942]
[1755421238424,0.9586,4543.6,4542.6,0.6116]
[1755421238626,0.56518115,4543.5,4542.6,0.6116]
[1755421238934,0.9586,4543.2,4542.5,1.3824]
[1755421239131,0.5508,4542.9,4542.4,3.2078]
[1755421239332,0.9586,4542.6,4542.5,0.6116]
[1755421239533,1.52378115,4542.6,4542.5,0.6116]
[1755421239730,0.56518115,4542.6,4542.5,2.3766]
[1755421239931,1.5094,4543.2,4542.6,0.43996]
[1755421240129,0.56529693,4543.1,4542.9,3.2078]
[1755421240325,24.156,4543.6,4543.0,1.3824]
[1755421240523,1.5094,4543.4,4543.1,0.6116]
[1755421240723,0.9586,4543.2,4543.0,0.7708]
[1755421240931,0.1,4544.2,4542.9,3.2078]
[1755421241132,0.565522,4544.1,4543.4,0.9942]
[1755421241333,0.565522,4544.0,4543.6,2.3766]
[1755421241534,0.565522,4543.9,4543.4,3.2078]
[1755421241836,1.0586,4544.2,4543.7,0.6116]
[1755421242036,1.11599687,4544.1,4543.7,0.7708]
[1755421242234,0.1,4544.2,4543.4,3.9786]
[1755421242235,0.56519687,4544.0,4543.4,3.9786]
[1755421242435,1.52379687,4543.9,4542.9,3.2078]
[1755421242731,1.11599687,4543.8,4543.1,0.6116]
[1755421242938,0.56519687,4543.7,4543.2,1.3824]
[1755421243129,0.56519687,4543.6,4543.3,0.43989]
[1755421243330,1.52379687,4543.5,4543.4,0.6116]
[1755421243536,2.07459687,4543.5,4542.9,3.2078]
[1755421243737,1.52379687,4543.4,4542.9,3.2078]
[1755421243933,1.5094,4543.1,4542.9,3.2078]
[1755421244136,2.07459687,4543.0,4542.9,3.2078]
[1755421244329,0.56519687,4543.0,4542.9,3.2078]
[1755421244537,0.56519687,4543.0,4542.9,4.9728]
[1755421245044,0.56519687,4543.0,4542.9,3.9786]
[1755421245342,1.0586,4544.2,4543.4,1.765]
[1755421245543,1.0586,4544.2,4543.5,0.6116]
[1755421246138,0.758,4544.1,4543.5,0.6116]
[1755421246341,0.1,4544.2,4543.5,0.6116]
[1755421246741,1.7166,4544.1,4543.5,0.6116]
[1755421247340,1.7166,4544.0,4543.5,0.6116]
[1755421247540,0.2366,4543.9,4543.1,0.7708]
[1755421247748,1.7847,4543.8,4543.1,0.7708]
[1755421248442,0.7636,4543.8,4542.9,3.2078]
[1755421248651,1.7847,4543.9,4543.0,0.7906]
[1755421248848,1.7847,4543.9,4543.1,0.5937]
[1755421249144,1.0211,4543.9,4543.4,0.7906]
[1755421249444,0.18805799,4543.8,4543.5,0.5937]
[1755421249648,0.1,4544.2,4543.5,1.09966]
[1755421249841,0.1,4544.2,4544.1,5.6132]
[1755421250046,1.1211,4544.2,4544.1,0.5937]
[1755421250246,0.1,4544.2,4544.1,2.4054]
[1755421252539,1.0211,4545.2,4544.4,0.43978]
[1755421252739,1.0211,4545.2,4544.6,1.6148]
[1755421253141,3.2078,4545.5,4544.0,3.2078]
[1755421253349,1.57386504,4548.0,4547.2,0.43951]
[1755421253550,0.76741533,4549.0,4548.0,2.4054]
[1755421253750,0.0368,4548.7,4547.6,3.2078]
[1755421253947,3.2078,4548.0,4547.5,0.5937]
[1755421254140,3.2446,4548.0,4547.2,0.5937]
[1755421254340,0.0368,4548.5,4547.4,0.43949]
[1755421254547,3.2078,4548.7,4547.6,0.43947]
[1755421254843,0.0368,4548.1,4547.2,2.92288243]
[1755421255142,0.0368,4547.5,4546.6,1.0211]
[1755421255345,0.0219,4547.4,4545.3,3.2078]
[1755421255647,1.0211,4546.5,4546.2,0.4396]
[1755421255850,1.0211,4547.0,4546.7,1.3843]
[1755421256054,1.0211,4547.6,4546.9,0.5937]
[1755421256252,3.2078,4547.0,4545.9,1.8117]
[1755421256447,0.0368,4546.9,4546.0,0.5937]
[1755421256642,0.0368,4546.9,4543.1,0.09905022]
[1755421256643,1.0579,4546.2,4545.2,3.2078]
[1755421256849,1.0579,4545.7,4544.9,0.5937]
[1755421257047,55.719,4546.1,4544.4,3.2078]
[1755421257048,3.2446,4545.4,4544.4,3.2078]
[1755421257246,1.0211,4545.3,4544.5,0.5937]
[1755421257449,0.0368,4545.2,4544.5,0.5937]
[1755421257654,3.2078,4546.0,4544.6,1.0211]
[1755421257850,55.715,4546.1,4545.0,2.4054]
[1755421258152,1.0579,4545.9,4545.0,2.4054]
[1755421258553,55.714,4546.1,4545.0,2.4054]
[1755421258554,3.2078,4545.4,4545.0,0.5937]
[1755421258955,1.2319,4545.1,4544.3,0.5937]
[1755421259452,1.2319,4545.1,4544.4,1.0211]
[1755421259647,1.0211,4545.6,4544.6,0.5937]
[1755421259847,31.683,4546.1,4544.9,1.8117]
[1755421260044,0.52095653,4546.0,4545.0,0.5937]
[1755421260243,1.2319,4545.8,4545.0,0.5937]
[1755421260555,1.2319,4545.6,4545.0,0.5937]
[1755421260755,1.2319,4545.4,4545.0,0.5937]
[1755421260947,3.2078,4545.5,4545.0,0.5937]
[1755421261152,0.1314,4545.4,4545.0,0.5937]
[1755421261348,1.0211,4545.2,4545.0,0.5937]
[1755421261553,0.022,4544.9,4543.9,3.2078]
[1755421261748,0.022,4543.8,4543.1,0.09905022]
[1755421261945,0.2108,4543.1,4542.5,2.20681282]
[1755421262149,24.53814476,4543.7,4541.6,0.5937]
[1755421262150,0.2108,4542.6,4541.6,0.5937]
[1755421262350,1.2319,4541.8,4541.1,0.5937]
[1755421263052,0.2108,4541.7,4540.6,0.5937]
[1755421263254,1.2319,4541.3,4540.6,0.5937]
[1755421263551,24.1444,4541.9,4540.6,0.5937]
[1755421263552,3.3392,4541.9,4540.6,0.5937]
[1755421263754,1.0211,4543.3,4541.5,1.8117]
[1755421263951,3.2078,4543.7,4540.8,1.10032]
[1755421263952,3.2078,4543.7,4542.8,0.7906]
[1755421264150,0.1,4544.2,4542.8,0.7906]
[1755421264151,0.1,4544.2,4543.1,3.2078]
[1755421264452,1.0211,4543.1,4542.3,0.5937]
[1755421264657,0.2108,4542.6,4541.0,3.9984]
[1755421264956,0.2108,4542.6,4538.8,31.69]
[1755421264957,1.0211,4541.7,4540.6,1.0211]
[1755421265255,1.0211,4541.7,4540.5,0.7906]
[1755421265256,1.0211,4541.2,4540.5,0.7906]
[1755421265458,1.0211,4541.2,4540.4,0.5937]
[1755421265459,0.2108,4541.1,4540.4,0.5937]
[1755421265654,0.2328,4540.9,4540.0,3.2078]
[1755421265953,1.2319,4540.0,4539.1,0.5937]
[1755421266350,1.2319,4540.0,4538.9,3.2078]
[1755421266351,3.2078,4540.1,4539.3,0.7906]
[1755421266545,3.2078,4540.1,4539.4,1.6148]
[1755421266752,1.2319,4540.8,4539.6,1.8117]
[1755421266952,34.8978,4541.4,4540.2,0.7906]
[1755421267151,34.8978,4541.4,4540.4,0.5937]
[1755421267556,3.2078,4540.9,4540.4,0.5937]
[1755421267751,1.0211,4540.8,4540.4,0.5937]
[1755421267961,3.2078,4540.9,4540.4,0.5937]
[1755421268154,1.2319,4540.6,4539.6,2.25194]
[1755421268353,1.2319,4540.6,4539.7,0.5937]
[1755421268757,3.2078,4540.5,4539.7,0.5937]
[1755421268958,1.2319,4540.4,4539.7,0.5937]
[1755421269556,3.2078,4540.5,4539.7,0.5937]
[1755421269759,4.4397,4541.9,4540.8,1.0211]
[1755421269954,3.2078,4542.4,4541.1,1.3843]
[1755421270155,3.2078,4542.4,4541.5,2.4054]
[1755421270453,3.2078,4542.4,4541.6,0.5937]
[1755421270855,3.2078,4543.5,4542.3,3.2078]
[1755421271160,4.9925,4544.1,4543.2,0.5937]
[1755421271360,4.9925,4544.1,4543.3,0.5937]
[1755421271361,3.2078,4544.1,4543.3,0.5937]
[1755421271560,3.2078,4544.1,4543.2,0.5937]
[1755421271761,1.8847,4544.2,4543.2,0.5937]
[1755421272065,3.2078,4543.6,4543.0,0.7906]
[1755421272266,3.2078,4543.6,4542.6,3.8015]
[1755421272451,3.9714,4543.6,4542.6,3.8015]
[1755421272653,0.022,4543.4,4542.6,3.2078]
[1755421272954,2.3726,4542.6,4541.8,3.2078]
[1755421273255,1.0211,4542.4,4540.8,3.8015]
[1755421273457,0.7636,4541.2,4540.3,3.9984]
[1755421273662,0.7636,4541.0,4540.3,3.2078]
[1755421273853,2.3726,4541.0,4540.3,3.2078]
[1755421274057,3.2078,4540.6,4539.8,1.0211]
[1755421274257,1.7847,4540.5,4539.8,1.0211]
[1755421274659,0.5879,4541.0,4539.9,0.5937]
[1755421274862,23.987,4541.3,4540.2,0.7906]
[1755421275062,23.985,4541.5,4540.4,0.5937]
[1755421275564,1.7847,4541.4,4540.4,0.5937]
[1755421275761,3.2078,4541.8,4540.8,0.7906]
[1755421276064,23.982,4542.4,4541.0,1.8117]
[1755421276260,34.9078,4542.6,4541.8,1.3843]
[1755421276562,0.022,4544.4,4540.3,1.10045]
[1755421276563,32.4666,4543.9,4542.6,1.0211]
[1755421276864,3.2078,4543.6,4542.8,0.7906]
[1755421277070,3.2078,4543.6,4541.0,1.10029]
[1755421277071,3.2078,4544.1,4543.2,1.0211]
[1755421277360,3.2078,4544.1,4543.3,0.5937]
[1755421277754,1.001,4544.2,4543.3,0.5937]
[1755421277957,4.2088,4544.2,4543.3,0.5937]
[1755421278153,2.6167,4544.1,4542.6,1.9164]
[1755421278360,2.6167,4543.5,4542.6,4.2853]
[1755421278552,4.3027,4542.9,4542.5,0.6464]
[1755421278763,1.0949,4542.7,4542.0,1.9164]
[1755421279064,3.2078,4542.6,4541.8,0.6464]
[1755421279558,2.6167,4542.4,4541.3,3.2078]
[1755421279861,3.2078,4541.7,4540.7,3.2078]
[1755421280062,2.6167,4541.6,4540.7,3.2078]
[1755421280656,23.966,4541.9,4540.9,0.6464]
[1755421281059,23.964,4542.1,4541.4,1.4853]
[1755421281259,3.2078,4541.7,4541.4,0.6464]
[1755421281456,0.901,4541.6,4541.0,1.0775]
[1755421281758,0.901,4541.6,4540.3,3.2078]
[1755421281759,25.4848,4541.6,4540.3,3.2078]
[1755421281960,3.2078,4541.2,4540.3,3.2078]
[1755421282165,3.2078,4542.2,4540.4,0.6464]
[1755421282356,25.9569,4542.1,4541.0,0.6464]
[1755421282757,3.2078,4542.2,4541.4,3.2078]
[1755421282955,3.2078,4542.2,4541.5,2.5628]
[1755421283561,3.2078,4542.2,4541.4,3.2078]
[1755421283957,1.9959,4542.1,4541.4,3.2078]
[1755421284162,23.955,4542.0,4541.4,3.2078]
[1755421284357,3.8286,4542.2,4541.4,5.1242]
[1755421284358,3.2078,4542.2,4541.4,5.1242]
[1755421284559,3.2078,4542.2,4541.5,0.8389]
[1755421284766,3.2078,4542.2,4541.6,1.7239]
[1755421285364,3.2078,4542.5,4541.6,1.7239]
[1755421285558,1.0949,4542.3,4541.4,3.2078]
[1755421285758,23.951,4542.4,4541.4,3.2078]
[1755421285957,3.2078,4542.0,4541.4,3.2078]
[1755421286163,1.0949,4541.8,4541.4,3.2078]
[1755421286372,0.6208,4542.3,4541.4,4.0467]
[1755421286564,23.947,4542.4,4541.5,2.5628]
[1755421286868,23.947,4542.4,4541.6,0.6464]
[1755421287263,0.6208,4541.7,4540.1,3.8542]
[1755421287461,25.9389,4541.6,4540.2,1.4853]
[1755421287671,1.9959,4541.1,4540.3,0.6464]
[1755421287859,3.2078,4540.7,4540.3,0.6464]
[1755421288062,1.9959,4540.5,4539.7,0.6464]
[1755421288261,23.942,4540.6,4539.9,1.4853]
[1755421288464,23.942,4540.6,4539.8,1.7239]
[1755421288771,23.942,4540.6,4540.2,1.9164]
[1755421288968,24.843,4540.6,4540.3,0.6464]
[1755421289164,25.9379,4540.6,4540.3,0.6464]
[1755421289567,23.939,4540.6,4540.1,3.2078]
[1755421289766,3.2078,4541.7,4540.6,1.9164]
[1755421289767,23.939,4541.7,4540.6,1.9164]
[1755421289972,23.939,4541.7,4540.7,3.8542]
[1755421290866,2.6167,4541.6,4540.7,3.8542]
[1755421291067,5.2037,4541.1,4540.1,3.8542]
[1755421291270,1.9959,4541.8,4540.6,3.2078]
[1755421291471,23.934,4541.4,4540.6,3.2078]
[1755421291665,1.9959,4541.3,4540.2,2.5628]
[1755421291970,1.9959,4541.0,4540.0,3.2078]
[1755421292175,1.9959,4541.0,4540.1,0.6464]
[1755421292472,1.9959,4541.0,4540.1,1.7239]
[1755421292671,23.931,4540.9,4540.6,1.7239]
[1755421292869,1.9959,4541.7,4540.7,1.7239]
[1755421293073,11.8897,4542.3,4541.4,0.6464]
[1755421293572,0.901,4542.4,4541.4,0.6464]
[1755421293775,24.828,4542.4,4541.4,0.6464]
[1755421294170,0.901,4542.1,4540.8,3.8542]
[1755421294376,24.4494431,4542.0,4541.4,1.4853]
[1755421294571,3.2078,4542.2,4541.4,2.5628]
[1755421294978,23.924,4542.1,4541.4,2.5628]
[1755421295270,23.924,4542.3,4541.4,2.5628]
[1755421295676,3.2078,4542.7,4541.8,3.2078]
[1755421295871,3.2078,4542.2,4541.4,0.6464]
[1755421296080,0.52374914,4542.1,4541.4,0.6464]
[1755421296675,3.2078,4542.2,4541.4,1.7239]
[1755421296872,23.918,4542.3,4541.8,1.4853]
[1755421297075,23.918,4542.6,4541.9,2.5628]
[1755421297578,1.9959,4542.5,4541.7,3.2078]
[1755421297782,1.9959,4542.5,4541.8,2.5628]
[1755421297783,23.916,4542.4,4541.8,2.5628]
[1755421298271,23.916,4542.4,4539.6,1.10063]
[1755421298272,2.51950657,4542.3,4541.3,0.6464]
[1755421298472,1.9959,4542.3,4541.3,0.6464]
[1755421298675,1.9959,4542.3,4541.6,3.2078]
[1755421298870,0.52363715,4542.2,4541.6,3.2078]
[1755421299076,2.6167,4542.0,4541.6,3.2078]
[1755421299273,3.8286,4542.6,4541.7,0.6464]
[1755421299474,23.911,4541.9,4541.8,2.5628]
[1755421299676,23.911,4541.9,4541.6,3.2078]
[1755421299874,24.5318,4541.9,4541.6,3.2078]
[1755421300076,2.6167,4541.7,4541.1,3.2078]
[1755421300276,1.9959,4541.4,4541.1,3.2078]
[1755421300476,1.0949,4541.1,4540.7,0.6464]
[1755421300775,1.9959,4541.1,4540.8,0.6464]
[1755421301178,1.9959,4541.5,4540.6,3.2078]
[1755421301384,3.14064478,4541.4,4540.6,3.2078]
[1755421301580,1.9959,4541.2,4540.6,3.2078]
[1755421301774,23.904,4541.2,4540.7,2.5628]
[1755421301978,23.904,4541.2,4540.7,0.6464]
[1755421302174,1.9959,4541.1,4540.6,3.2078]
[1755421302377,4.9235,4540.9,4539.9,3.2078]
[1755421302578,1.0949,4540.7,4539.9,3.2078]
[1755421302778,0.901,4540.8,4540.0,0.6464]
[1755421302975,1.0949,4542.2,4540.7,0.44014]
[1755421303279,1.56847998,4543.3,4542.1,1.9164]
[1755421303280,3.2078,4543.0,4542.1,1.9164]
[1755421303476,3.2078,4544.1,4542.9,1.0775]
[1755421303674,0.901,4545.8,4544.1,0.8389]
[1755421303882,0.901,4545.8,4544.9,3.8542]
[1755421304181,0.901,4545.8,4545.0,3.2078]
[1755421304376,3.2078,4545.4,4544.9,0.6464]
[1755421304577,0.6208,4545.2,4544.4,3.2078]
[1755421304773,0.6208,4545.2,4544.2,1.7239]
[1755421304774,0.6208,4545.8,4544.9,3.2078]
[1755421304975,24.5148,4545.8,4544.9,3.2078]
[1755421305177,0.901,4545.3,4544.5,1.4853]
[1755421305579,0.901,4545.3,4544.5,0.6464]
[1755421305780,23.892,4545.7,4544.8,0.6464]
[1755421306079,23.892,4545.7,4544.1,1.9164]
[1755421306080,0.901,4545.3,4544.1,1.9164]
[1755421306278,4.3027,4546.5,4544.4,1.7239]
[1755421306580,3.2078,4546.5,4545.7,2.5628]
[1755421306878,3.2078,4546.5,4545.7,1.9164]
[1755421307083,3.2078,4546.5,4545.8,0.6464]
[1755421307283,3.2078,4546.5,4545.9,1.9164]
[1755421307576,3.2078,4546.5,4545.8,0.6464]
[1755421307974,3.2078,4546.5,4545.2,1.0045]
[1755421308176,5.1253,4546.4,4545.2,1.6682]
[1755421308784,1.9175,4545.8,4545.2,0.6637]
[1755421308980,23.879,4545.7,4544.6,3.2078]
[1755421309580,3.2078,4547.4,4545.7,2.4928]
[1755421309781,3.2078,4547.4,4546.4,2.4928]
[1755421310081,3.2078,4547.4,4546.5,1.6682]
[1755421310486,3.2078,4547.4,4546.5,1.0045]
[1755421310689,3.2078,4547.4,4546.6,0.6637]
[1755421311488,0.8432,4548.3,4547.5,0.8246]
[1755421312889,1.9175,4548.3,4547.4,1.6682]
[1755421313195,25.77631533,4549.0,4547.8,0.6637]
[1755421313389,25.77631533,4549.0,4548.0,0.6637]
[1755421313390,25.77531533,4549.0,4548.0,0.6637]
[1755421313687,1.96049,4551.0,4547.9,1.8291]
[1755421313688,3.2078,4549.7,4548.9,2.93215]
[1755421313985,3.2078,4549.8,4548.9,2.4928]
[1755421314182,3.2078,4549.8,4548.9,0.6637]
[1755421314183,3.2078,4549.1,4548.9,0.6637]
[1755421314487,3.2078,4549.1,4548.5,1.6682]
[1755421315082,3.2078,4548.6,4548.5,2.4928]
[1755421315282,3.2078,4549.7,4548.6,0.6637]
[1755421315485,3.2078,4549.7,4548.8,0.6637]
[1755421315784,3.2078,4549.7,4549.1,1.0045]
[1755421315984,3.2078,4549.7,4548.8,0.6637]
[1755421316188,3.2078,4549.7,4549.0,0.6637]
[1755421316692,27.889,4550.7,4549.3,1.8291]
[1755421316884,27.889,4550.7,4549.4,0.6637]
[1755421317084,3.2078,4550.2,4549.4,0.6637]
[1755421319091,3.2078,4550.7,4549.8,2.4928]
[1755421319280,0.8432,4550.1,4549.8,0.6637]
[1755421319481,1.7225,4550.0,4549.1,1.0045]
[1755421319689,1.7225,4550.0,4549.0,0.6637]
[1755421319690,0.8432,4549.6,4549.0,0.6637]
[1755421320286,3.2078,4551.0,4549.5,3.64709]
[1755421320492,3.2078,4551.0,4549.7,0.6637]
[1755421320687,3.2078,4550.5,4549.7,0.6637]
[1755421321190,2.5657,4550.4,4549.3,3.2078]
[1755421321396,3.2078,4550.5,4549.5,2.4928]
[1755421321593,3.2078,4550.5,4549.9,0.8246]
[1755421321789,25.3104,4551.0,4550.0,1.0045]
[1755421322091,3.2078,4550.1,4549.1,3.2078]
[1755421322389,1.9175,4550.0,4549.1,3.2078]
[1755421322594,23.819,4551.0,4549.8,2.4928]
[1755421322595,3.2078,4550.9,4549.8,2.4928]
[1755421322787,0.8432,4550.1,4549.1,3.2078]
[1755421322988,0.8432,4550.1,4549.1,4.2123]
[1755421323188,3.2078,4550.7,4549.7,0.6637]
[1755421323990,25.7285,4550.8,4549.7,0.6637]
[1755421324186,27.0188,4550.8,4550.2,0.6637]
[1755421324393,0.1,4551.2,4550.4,0.6637]
[1755421324589,0.1,4551.2,4550.6,1.4883]
[1755421324791,0.1,4551.2,4550.4,0.4392]
[1755421325190,0.1,4551.2,4550.3,3.2078]
[1755421325594,0.1,4551.2,4550.9,0.6637]
[1755421325787,1.1743,4551.2,4550.9,0.6637]
[1755421325995,1.1743,4551.2,4550.3,3.2078]
[1755421325996,0.8432,4551.1,4550.3,3.2078]
[1755421326196,0.1,4551.2,4551.0,0.6637]
[1755421326393,0.9432,4551.2,4550.7,0.8246]
[1755421326694,0.1,4551.2,4550.6,1.4883]
[1755421326893,0.1,4551.2,4550.9,2.4928]
[1755421327100,0.1,4551.2,4550.9,2.26826]
[1755421327294,0.1,4551.2,4551.0,0.6637]
[1755421327494,0.6482,4552.8,4550.9,2.4928]
[1755421327495,3.2078,4552.4,4550.9,2.4928]
[1755421327695,3.2078,4551.9,4551.1,0.6637]
[1755421328197,3.2078,4551.3,4550.4,1.8291]
[1755421328395,3.2078,4551.3,4550.5,0.6637]
[1755421328590,5.1253,4550.8,4550.1,0.09889784]
[1755421328790,3.2078,4550.2,4550.1,0.09889784]
[1755421328995,0.6482,4550.7,4550.1,0.09889784]
[1755421329196,3.2078,4550.9,4550.1,0.09889784]
[1755421329197,1.4914,4550.3,4550.1,0.09889784]
[1755421329495,2.5657,4550.2,4550.1,0.09889784]
[1755421329701,2.5876,4550.2,4548.5,3.2078]
[1755421329902,0.8432,4549.5,4548.6,1.10308]
[1755421330110,24.8653,4550.3,4549.2,0.6637]
[1755421330402,4.2821,4550.3,4549.4,1.6682]
[1755421330601,3.2078,4549.8,4549.4,1.6682]
[1755421330903,1.9175,4549.6,4548.9,3.2078]
[1755421331200,1.9175,4549.6,4548.8,0.6637]
[1755421331798,1.0743,4550.2,4548.9,0.8246]